[Event "Late-Titled-Tuesday-Blitz-October-24-2023"]
[Site "Chess.com"]
[Date "2023.10.24"]
[Round "11"]
[White "cthulhuuu"]
[Black "aghasiyevkamal"]
[Result "0-1"]
[WhiteElo "2419"]
[BlackElo "2587"]
[TimeControl "180+1"]
[EndTime "16:08:26 PDT"]
[Termination "aghasiyevkamal won on time"]

1. e4 {[%clk 0:03:00.1]} 1... e5 {[%clk 0:02:57]} 2. Nf3 {[%clk 0:03:00.2]} 2...
Nc6 {[%clk 0:02:56.8]} 3. Bb5 {[%clk 0:02:59.8]} 3... a6 {[%clk 0:02:55.9]} 4.
Bxc6 {[%clk 0:03:00.1]} 4... dxc6 {[%clk 0:02:55.6]} 5. O-O {[%clk 0:03:01]}
5... Bd6 {[%clk 0:02:53.7]} 6. d4 {[%clk 0:02:59.1]} 6... exd4 {[%clk
0:02:53.7]} 7. Qxd4 {[%clk 0:02:59.4]} 7... f6 {[%clk 0:02:53.8]} 8. Nbd2 {[%clk
0:02:53.9]} 8... Be6 {[%clk 0:02:50.5]} 9. Nc4 {[%clk 0:02:53.3]} 9... Bxh2+
{[%clk 0:02:37.5]} 10. Kxh2 {[%clk 0:02:45]} 10... Qxd4 {[%clk 0:02:37.3]} 11.
Nxd4 {[%clk 0:02:45.3]} 11... Bxc4 {[%clk 0:02:37.3]} 12. Rd1 {[%clk 0:02:19.6]}
12... O-O-O {[%clk 0:02:34.4]} 13. Bf4 {[%clk 0:02:17.2]} 13... g6 {[%clk
0:02:22.5]} 14. b3 {[%clk 0:02:04.8]} 14... Bf7 {[%clk 0:02:20]} 15. e5 {[%clk
0:02:02.4]} 15... Re8 {[%clk 0:02:12.4]} 16. Re1 {[%clk 0:01:50.8]} 16... g5
{[%clk 0:01:49.2]} 17. Bg3 {[%clk 0:01:19.6]} 17... Nh6 {[%clk 0:01:38.3]} 18.
exf6 {[%clk 0:01:07.5]} 18... c5 {[%clk 0:01:31]} 19. Nf3 {[%clk 0:01:02]} 19...
Ng4+ {[%clk 0:01:31]} 20. Kg1 {[%clk 0:01:01.5]} 20... h6 {[%clk 0:01:28.4]} 21.
Be5 {[%clk 0:00:47.4]} 21... Rhf8 {[%clk 0:01:22.8]} 22. Bc3 {[%clk 0:00:38.8]}
22... Bd5 {[%clk 0:01:05.3]} 23. Rxe8+ {[%clk 0:00:21.1]} 23... Rxe8 {[%clk
0:01:04.5]} 24. Nh2 {[%clk 0:00:21.6]} 24... Nxh2 {[%clk 0:00:55.8]} 25. Kxh2
{[%clk 0:00:22.5]} 25... Re2 {[%clk 0:00:50.5]} 26. Rd1 {[%clk 0:00:22.3]} 26...
c6 {[%clk 0:00:49.9]} 27. Rd2 {[%clk 0:00:22.7]} 27... Re4 {[%clk 0:00:30.7]}
28. Bb2 {[%clk 0:00:23.1]} 28... b5 {[%clk 0:00:29.4]} 29. f3 {[%clk 0:00:20.7]}
29... Rf4 {[%clk 0:00:27.7]} 30. Kg3 {[%clk 0:00:19.5]} 30... Kd7 {[%clk
0:00:25.9]} 31. Be5 {[%clk 0:00:16.2]} 31... Rf5 {[%clk 0:00:23.8]} 32. f4
{[%clk 0:00:12.3]} 32... Ke6 {[%clk 0:00:23.3]} 33. c4 {[%clk 0:00:10.2]} 33...
bxc4 {[%clk 0:00:18.1]} 34. bxc4 {[%clk 0:00:10.9]} 34... gxf4+ {[%clk
0:00:16.1]} 35. Bxf4 {[%clk 0:00:11.7]} 35... Bxc4 {[%clk 0:00:14.5]} 36. Rd6+
{[%clk 0:00:12.6]} 36... Kf7 {[%clk 0:00:14.8]} 37. Rxc6 {[%clk 0:00:11.1]}
37... Bb5 {[%clk 0:00:12.2]} 38. Rc7+ {[%clk 0:00:11.2]} 38... Kxf6 {[%clk
0:00:12.1]} 39. Bxh6 {[%clk 0:00:09]} 39... Rd5 {[%clk 0:00:10.2]} 40. Bf4
{[%clk 0:00:08]} 40... Kf5 {[%clk 0:00:08.9]} 41. Rf7+ {[%clk 0:00:07.6]} 41...
Kg6 {[%clk 0:00:09.1]} 42. Rb7 {[%clk 0:00:06.6]} 42... Rd3+ {[%clk 0:00:08.6]}
43. Kf2 {[%clk 0:00:05.6]} 43... Ra3 {[%clk 0:00:08.4]} 44. Rb6+ {[%clk
0:00:05.8]} 44... Kf5 {[%clk 0:00:08.8]} 45. Be3 {[%clk 0:00:02.7]} 45... Rxa2+
{[%clk 0:00:07.8]} 46. Kf3 {[%clk 0:00:03.1]} 46... Be2+ {[%clk 0:00:07.6]} 47.
Kg3 {[%clk 0:00:03.6]} 47... Bb5 {[%clk 0:00:06.3]} 48. Bxc5 {[%clk 0:00:03.2]}
48... Ke4 {[%clk 0:00:05.9]} 49. Be7 {[%clk 0:00:02]} 49... Kd5 {[%clk
0:00:05.5]} 50. Kh4 {[%clk 0:00:02.3]} 50... Kc4 {[%clk 0:00:03.9]} 51. g4
{[%clk 0:00:02.5]} 51... Re2 {[%clk 0:00:04.2]} 52. Ba3 {[%clk 0:00:01.8]} 52...
Rh2+ {[%clk 0:00:02.5]} 53. Kg5 {[%clk 0:00:02.1]} 53... Rg2 {[%clk 0:00:02.2]}
54. Bf8 {[%clk 0:00:02.5]} 54... a5 {[%clk 0:00:02.3]} 55. Rb8 {[%clk
0:00:01.8]} 55... a4 {[%clk 0:00:02.5]} 56. Bg7 {[%clk 0:00:02.1]} 56... a3
{[%clk 0:00:02.1]} 57. Rc8+ {[%clk 0:00:02.6]} 57... Kb3 {[%clk 0:00:01.9]} 0-1

[Event "Late-Titled-Tuesday-Blitz-October-24-2023"]
[Site "Chess.com"]
[Date "2023.10.24"]
[Round "11"]
[White "APOKALIPSA13"]
[Black "SlippperyWhenWet"]
[Result "0-1"]
[WhiteElo "2207"]
[BlackElo "2341"]
[TimeControl "180+1"]
[EndTime "16:08:32 PDT"]
[Termination "SlippperyWhenWet won by checkmate"]

1. e4 {[%clk 0:02:45.7]} 1... h5 {[%clk 0:02:48.6]} 2. d4 {[%clk 0:02:45.2]}
2... d6 {[%clk 0:02:47.2]} 3. h4 {[%clk 0:02:42.2]} 3... g6 {[%clk 0:02:44.2]}
4. Bg5 {[%clk 0:02:40]} 4... Bg7 {[%clk 0:02:42.8]} 5. c3 {[%clk 0:02:37.4]}
5... c6 {[%clk 0:02:42.6]} 6. Bc4 {[%clk 0:02:33.5]} 6... Qb6 {[%clk 0:02:39.1]}
7. Qb3 {[%clk 0:02:29.9]} 7... Qxb3 {[%clk 0:02:36.3]} 8. axb3 {[%clk
0:02:28.9]} 8... b5 {[%clk 0:02:32.8]} 9. Bd3 {[%clk 0:02:27.1]} 9... Be6 {[%clk
0:02:24.3]} 10. Nd2 {[%clk 0:02:16.7]} 10... Nh6 {[%clk 0:02:10.6]} 11. f3
{[%clk 0:02:15.2]} 11... Nd7 {[%clk 0:01:33.1]} 12. Ne2 {[%clk 0:02:14]} 12...
Bf6 {[%clk 0:01:11.6]} 13. Ra6 {[%clk 0:02:06.8]} 13... Nb8 {[%clk 0:01:06.5]}
14. Ra5 {[%clk 0:02:01.6]} 14... Bxg5 {[%clk 0:00:58.9]} 15. hxg5 {[%clk
0:01:58.9]} 15... Ng8 {[%clk 0:00:59.5]} 16. Nf4 {[%clk 0:01:39.3]} 16... Bd7
{[%clk 0:00:56.1]} 17. d5 {[%clk 0:01:35.3]} 17... a6 {[%clk 0:00:54.2]} 18. Kf2
{[%clk 0:01:18.5]} 18... e6 {[%clk 0:00:44]} 19. dxe6 {[%clk 0:01:12.6]} 19...
Bxe6 {[%clk 0:00:44.2]} 20. Nxe6 {[%clk 0:01:12.2]} 20... fxe6 {[%clk
0:00:45.1]} 21. e5 {[%clk 0:01:12.4]} 21... dxe5 {[%clk 0:00:24.7]} 22. Bxg6+
{[%clk 0:01:11.7]} 22... Kf8 {[%clk 0:00:24.5]} 23. Rxh5 {[%clk 0:01:05.2]}
23... Rxh5 {[%clk 0:00:24.2]} 24. Bxh5 {[%clk 0:01:06.1]} 24... Ne7 {[%clk
0:00:25.1]} 25. Ne4 {[%clk 0:00:58.3]} 25... Nd7 {[%clk 0:00:25.4]} 26. b4
{[%clk 0:00:54.9]} 26... Nd5 {[%clk 0:00:20.3]} 27. g3 {[%clk 0:00:53.1]} 27...
Kg7 {[%clk 0:00:20.1]} 28. Bg4 {[%clk 0:00:50.9]} 28... Kf7 {[%clk 0:00:12]} 29.
b3 {[%clk 0:00:39.9]} 29... Ke7 {[%clk 0:00:09.9]} 30. g6 {[%clk 0:00:35]} 30...
N7f6 {[%clk 0:00:06.4]} 31. c4 {[%clk 0:00:16.7]} 31... Nxg4+ {[%clk 0:00:04.6]}
32. fxg4 {[%clk 0:00:15.7]} 32... Nf6 {[%clk 0:00:05.2]} 33. Ng5 {[%clk
0:00:13.3]} 33... e4 {[%clk 0:00:03.8]} 34. Ke3 {[%clk 0:00:11.9]} 34... Rg8
{[%clk 0:00:04.3]} 35. Rxa6 {[%clk 0:00:11.4]} 35... Rxg6 {[%clk 0:00:05]} 36.
Ra7+ {[%clk 0:00:07.3]} 36... Ke8 {[%clk 0:00:05.6]} 37. Nxe6 {[%clk 0:00:07.2]}
37... Nxg4+ {[%clk 0:00:06.2]} 38. Kxe4 {[%clk 0:00:06.9]} 38... Rxe6+ {[%clk
0:00:06.9]} 39. Kf5 {[%clk 0:00:06.9]} 39... Re3 {[%clk 0:00:06.3]} 40. Kxg4
{[%clk 0:00:07]} 40... Rxb3 {[%clk 0:00:06.7]} 41. c5 {[%clk 0:00:07.2]} 41...
Rxb4+ {[%clk 0:00:06.7]} 42. Kf5 {[%clk 0:00:05.9]} 42... Rc4 {[%clk 0:00:07.2]}
43. Ke5 {[%clk 0:00:06.1]} 43... Rxc5+ {[%clk 0:00:07.4]} 44. Kd6 {[%clk
0:00:06.3]} 44... Rc2 {[%clk 0:00:05.7]} 45. Ke6 {[%clk 0:00:06.3]} 45... Kf8
{[%clk 0:00:05.6]} 46. Kf6 {[%clk 0:00:06.3]} 46... Rf2+ {[%clk 0:00:06]} 47.
Ke6 {[%clk 0:00:05.1]} 47... b4 {[%clk 0:00:04.6]} 48. Rc7 {[%clk 0:00:05.1]}
48... Rc2 {[%clk 0:00:04]} 49. Kf6 {[%clk 0:00:05.3]} 49... Ke8 {[%clk
0:00:04.7]} 50. Ke6 {[%clk 0:00:05.5]} 50... Kd8 {[%clk 0:00:05.4]} 51. Rb7
{[%clk 0:00:05.7]} 51... c5 {[%clk 0:00:04.3]} 52. g4 {[%clk 0:00:06.2]} 52...
Rc3 {[%clk 0:00:03.5]} 53. Kd6 {[%clk 0:00:05.9]} 53... Kc8 {[%clk 0:00:03.8]}
54. Kc6 {[%clk 0:00:05.5]} 54... b3 {[%clk 0:00:02.2]} 55. Rc7+ {[%clk
0:00:05.7]} 55... Kd8 {[%clk 0:00:02.7]} 56. Rh7 {[%clk 0:00:05.7]} 56... Ke8
{[%clk 0:00:03.1]} 57. g5 {[%clk 0:00:05.4]} 57... b2 {[%clk 0:00:03.4]} 58.
Rh8+ {[%clk 0:00:03.8]} 58... Kf7 {[%clk 0:00:03.5]} 59. Rh7+ {[%clk 0:00:03.8]}
59... Kg6 {[%clk 0:00:03.8]} 60. Rh1 {[%clk 0:00:02.5]} 60... Rc1 {[%clk
0:00:03.4]} 61. Rh6+ {[%clk 0:00:02.1]} 61... Kxg5 {[%clk 0:00:03.6]} 62. Rd6
{[%clk 0:00:02.6]} 62... b1=Q {[%clk 0:00:03.9]} 63. Rd5+ {[%clk 0:00:02.9]}
63... Kf4 {[%clk 0:00:03.6]} 64. Rd6 {[%clk 0:00:03.8]} 64... Rd1 {[%clk
0:00:04]} 65. Rf6+ {[%clk 0:00:04.6]} 65... Ke5 {[%clk 0:00:04.6]} 66. Rd6
{[%clk 0:00:04.8]} 66... Rxd6+ {[%clk 0:00:05]} 67. Kc7 {[%clk 0:00:05.1]} 67...
Qb6+ {[%clk 0:00:05.7]} 68. Kc8 {[%clk 0:00:03.8]} 68... Rd8# {[%clk 0:00:06.6]}
0-1

[Event "Late-Titled-Tuesday-Blitz-October-24-2023"]
[Site "Chess.com"]
[Date "2023.10.24"]
[Round "11"]
[White "Apocalyps999"]
[Black "Ali_rastbod"]
[Result "0-1"]
[WhiteElo "2385"]
[BlackElo "2747"]
[TimeControl "180+1"]
[EndTime "16:08:34 PDT"]
[Termination "Ali_rastbod won by checkmate"]

1. e4 {[%clk 0:03:00.9]} 1... c5 {[%clk 0:02:50.6]} 2. g3 {[%clk 0:02:57.8]}
2... Nc6 {[%clk 0:02:49.4]} 3. Bg2 {[%clk 0:02:57.3]} 3... g6 {[%clk 0:02:50.3]}
4. Ne2 {[%clk 0:02:57.8]} 4... Bg7 {[%clk 0:02:49.2]} 5. c3 {[%clk 0:02:58.7]}
5... e5 {[%clk 0:02:44.4]} 6. O-O {[%clk 0:02:55.6]} 6... Nge7 {[%clk
0:02:42.4]} 7. f4 {[%clk 0:02:56]} 7... d6 {[%clk 0:02:39.4]} 8. d3 {[%clk
0:02:52.7]} 8... O-O {[%clk 0:02:38.5]} 9. Nd2 {[%clk 0:02:49.2]} 9... d5 {[%clk
0:02:38]} 10. Nf3 {[%clk 0:02:47.1]} 10... dxe4 {[%clk 0:02:31]} 11. dxe4 {[%clk
0:02:48]} 11... Qxd1 {[%clk 0:02:31.3]} 12. Rxd1 {[%clk 0:02:48.3]} 12... Be6
{[%clk 0:02:32.2]} 13. Be3 {[%clk 0:02:47.3]} 13... b6 {[%clk 0:02:31.5]} 14.
Kf2 {[%clk 0:02:44.1]} 14... h6 {[%clk 0:02:30.2]} 15. fxe5 {[%clk 0:02:36]}
15... g5 {[%clk 0:02:25.5]} 16. h4 {[%clk 0:02:29.7]} 16... g4 {[%clk
0:02:25.7]} 17. Nh2 {[%clk 0:02:29.8]} 17... h5 {[%clk 0:02:25.2]} 18. Nf4
{[%clk 0:02:28]} 18... Nxe5 {[%clk 0:02:11.4]} 19. Nxh5 {[%clk 0:02:26.7]} 19...
Bh8 {[%clk 0:01:52.3]} 20. Bg5 {[%clk 0:02:16.9]} 20... f6 {[%clk 0:01:49.3]}
21. Be3 {[%clk 0:02:14.4]} 21... Nc4 {[%clk 0:01:32.4]} 22. b3 {[%clk 0:02:11]}
22... Nxe3 {[%clk 0:01:31.9]} 23. Kxe3 {[%clk 0:02:11.9]} 23... f5 {[%clk
0:01:32.5]} 24. Nf4 {[%clk 0:02:11.4]} 24... Bf7 {[%clk 0:01:28.3]} 25. Rac1
{[%clk 0:02:02.1]} 25... Rae8 {[%clk 0:01:25.1]} 26. exf5 {[%clk 0:01:54.2]}
26... Nd5+ {[%clk 0:00:16.6]} 27. Kf2 {[%clk 0:01:29.9]} 27... Nxf4 {[%clk
0:00:17.1]} 28. gxf4 {[%clk 0:01:29.9]} 28... Bh5 {[%clk 0:00:15.6]} 29. Bd5+
{[%clk 0:01:22.8]} 29... Kh7 {[%clk 0:00:14.5]} 30. Re1 {[%clk 0:01:18.7]} 30...
Rxe1 {[%clk 0:00:12.1]} 31. Rxe1 {[%clk 0:01:19.6]} 31... Bxc3 {[%clk
0:00:11.9]} 32. Re7+ {[%clk 0:01:20]} 32... Kh6 {[%clk 0:00:11.4]} 33. Kg3
{[%clk 0:01:08.9]} 33... Rxf5 {[%clk 0:00:10.5]} 34. Be4 {[%clk 0:00:20.4]}
34... Be1+ {[%clk 0:00:08.1]} 35. Kg2 {[%clk 0:00:20.7]} 35... Bxh4 {[%clk
0:00:08.8]} 36. Bxf5 {[%clk 0:00:07.8]} 36... Bxe7 {[%clk 0:00:07.7]} 37. Nxg4+
{[%clk 0:00:07.7]} 37... Kg7 {[%clk 0:00:08.3]} 38. Kf3 {[%clk 0:00:06]} 38...
b5 {[%clk 0:00:07.9]} 39. Ke4 {[%clk 0:00:06.4]} 39... Bf7 {[%clk 0:00:05.7]}
40. Ne5 {[%clk 0:00:05.8]} 40... Bg8 {[%clk 0:00:06.1]} 41. Bd7 {[%clk
0:00:06.1]} 41... a6 {[%clk 0:00:05.1]} 42. Bc8 {[%clk 0:00:06]} 42... a5 {[%clk
0:00:04.9]} 43. Ba6 {[%clk 0:00:06.2]} 43... b4 {[%clk 0:00:04.8]} 44. Bc4
{[%clk 0:00:05.8]} 44... Bh7+ {[%clk 0:00:05.5]} 45. f5 {[%clk 0:00:04.4]} 45...
Kf6 {[%clk 0:00:04.5]} 46. Nd7+ {[%clk 0:00:04.3]} 46... Kg5 {[%clk 0:00:04.3]}
47. Be6 {[%clk 0:00:04.9]} 47... c4 {[%clk 0:00:03.5]} 48. bxc4 {[%clk
0:00:04.6]} 48... a4 {[%clk 0:00:04.2]} 49. c5 {[%clk 0:00:05.1]} 49... b3
{[%clk 0:00:04.5]} 50. axb3 {[%clk 0:00:06]} 50... a3 {[%clk 0:00:05]} 51. b4
{[%clk 0:00:06.6]} 51... Bxf5+ {[%clk 0:00:05.7]} 52. Ke5 {[%clk 0:00:02.8]}
52... Bxe6 {[%clk 0:00:06.1]} 53. Kxe6 {[%clk 0:00:03.1]} 53... a2 {[%clk
0:00:05.7]} 54. Kxe7 {[%clk 0:00:04]} 54... a1=Q {[%clk 0:00:06.3]} 55. c6
{[%clk 0:00:04.9]} 55... Qg7+ {[%clk 0:00:06.7]} 56. Kd6 {[%clk 0:00:05]} 56...
Qd4+ {[%clk 0:00:06.8]} 57. Ke7 {[%clk 0:00:03.6]} 57... Qxb4+ {[%clk
0:00:07.3]} 58. Kd8 {[%clk 0:00:03.6]} 58... Qa5+ {[%clk 0:00:03.6]} 59. c7
{[%clk 0:00:04.5]} 59... Kf5 {[%clk 0:00:04]} 60. Nc5 {[%clk 0:00:04]} 60... Ke5
{[%clk 0:00:02.4]} 61. Kc8 {[%clk 0:00:03.8]} 61... Qa8+ {[%clk 0:00:01.8]} 62.
Kd7 {[%clk 0:00:03.8]} 62... Qd5+ {[%clk 0:00:02.5]} 63. Kc8 {[%clk 0:00:04.3]}
63... Qxc5 {[%clk 0:00:02.8]} 64. Kb8 {[%clk 0:00:03.8]} 64... Qb6+ {[%clk
0:00:03]} 65. Kc8 {[%clk 0:00:04.3]} 65... Kd6 {[%clk 0:00:02.7]} 66. Kd8 {[%clk
0:00:05.2]} 66... Qxc7+ {[%clk 0:00:03.3]} 67. Ke8 {[%clk 0:00:06.1]} 67... Qe7#
{[%clk 0:00:04.2]} 0-1

[Event "Late-Titled-Tuesday-Blitz-October-24-2023"]
[Site "Chess.com"]
[Date "2023.10.24"]
[Round "11"]
[White "dosto07"]
[Black "Felix-Rose"]
[Result "1-0"]
[WhiteElo "2536"]
[BlackElo "2339"]
[TimeControl "180+1"]
[EndTime "16:08:48 PDT"]
[Termination "dosto07 won on time"]

1. e4 {[%clk 0:02:20.3]} 1... e5 {[%clk 0:02:59.6]} 2. Nf3 {[%clk 0:02:20.5]}
2... Nc6 {[%clk 0:03:00]} 3. Bb5 {[%clk 0:02:21]} 3... a6 {[%clk 0:03:00.2]} 4.
Bxc6 {[%clk 0:02:20.1]} 4... dxc6 {[%clk 0:03:01.1]} 5. O-O {[%clk 0:02:20.6]}
5... Qd6 {[%clk 0:02:56.3]} 6. Na3 {[%clk 0:02:17.9]} 6... Be6 {[%clk
0:02:46.3]} 7. Qe2 {[%clk 0:02:17.5]} 7... O-O-O {[%clk 0:02:37.9]} 8. Nc4
{[%clk 0:01:57]} 8... Bxc4 {[%clk 0:02:38.2]} 9. Qxc4 {[%clk 0:01:57.4]} 9... f6
{[%clk 0:02:34.1]} 10. d3 {[%clk 0:01:50.3]} 10... Ne7 {[%clk 0:02:31.5]} 11.
Be3 {[%clk 0:01:49.2]} 11... Ng6 {[%clk 0:02:29.6]} 12. Rfd1 {[%clk 0:01:48.3]}
12... Kb8 {[%clk 0:02:16.9]} 13. a4 {[%clk 0:01:37.2]} 13... Qb4 {[%clk
0:02:06.5]} 14. Qxb4 {[%clk 0:01:32.9]} 14... Bxb4 {[%clk 0:02:06.4]} 15. Kf1
{[%clk 0:01:33.2]} 15... Rd7 {[%clk 0:01:56.3]} 16. g3 {[%clk 0:01:23.8]} 16...
Rhd8 {[%clk 0:01:55.3]} 17. Ke2 {[%clk 0:01:23.8]} 17... Bf8 {[%clk 0:01:54.7]}
18. d4 {[%clk 0:01:18.9]} 18... exd4 {[%clk 0:01:51.2]} 19. Rxd4 {[%clk
0:01:18.9]} 19... Rxd4 {[%clk 0:01:49.6]} 20. Nxd4 {[%clk 0:01:09]} 20... Re8
{[%clk 0:01:43.4]} 21. f3 {[%clk 0:01:07.4]} 21... Ne5 {[%clk 0:01:43.1]} 22. b3
{[%clk 0:01:05.4]} 22... Nd7 {[%clk 0:01:40.3]} 23. Rd1 {[%clk 0:01:01.6]} 23...
Kc8 {[%clk 0:01:38.6]} 24. Kf2 {[%clk 0:00:55.6]} 24... Bc5 {[%clk 0:01:36.9]}
25. Nf5 {[%clk 0:00:50.8]} 25... Bxe3+ {[%clk 0:01:33.5]} 26. Nxe3 {[%clk
0:00:51]} 26... Nc5 {[%clk 0:01:22.4]} 27. h4 {[%clk 0:00:50.1]} 27... h5 {[%clk
0:01:14.9]} 28. Rd4 {[%clk 0:00:39.4]} 28... g6 {[%clk 0:01:09.9]} 29. Nc4
{[%clk 0:00:37.5]} 29... Ne6 {[%clk 0:01:03.8]} 30. Rd2 {[%clk 0:00:37]} 30...
c5 {[%clk 0:01:01.9]} 31. c3 {[%clk 0:00:29.2]} 31... b5 {[%clk 0:00:56.7]} 32.
axb5 {[%clk 0:00:28.4]} 32... axb5 {[%clk 0:00:57.6]} 33. Ne3 {[%clk 0:00:27.4]}
33... c6 {[%clk 0:00:54.4]} 34. f4 {[%clk 0:00:22.6]} 34... Kc7 {[%clk
0:00:49.8]} 35. Kf3 {[%clk 0:00:22.7]} 35... Ra8 {[%clk 0:00:48.6]} 36. f5
{[%clk 0:00:23.1]} 36... gxf5 {[%clk 0:00:47.7]} 37. Nxf5 {[%clk 0:00:18.8]}
37... Ra3 {[%clk 0:00:41.9]} 38. Rb2 {[%clk 0:00:16.6]} 38... c4 {[%clk
0:00:36.4]} 39. bxc4 {[%clk 0:00:15.1]} 39... Rxc3+ {[%clk 0:00:36.8]} 40. Ne3
{[%clk 0:00:15.1]} 40... bxc4 {[%clk 0:00:26.2]} 41. Rb4 {[%clk 0:00:15.1]}
41... Nd4+ {[%clk 0:00:21.9]} 42. Kf2 {[%clk 0:00:13.6]} 42... Rxe3 {[%clk
0:00:21.1]} 43. Rxc4 {[%clk 0:00:11]} 43... Rf3+ {[%clk 0:00:18.5]} 44. Kg2
{[%clk 0:00:10.8]} 44... Rd3 {[%clk 0:00:18.8]} 45. Rc5 {[%clk 0:00:11.3]} 45...
Rd2+ {[%clk 0:00:14.1]} 46. Kf1 {[%clk 0:00:08.8]} 46... Rd3 {[%clk 0:00:10.5]}
47. Kf2 {[%clk 0:00:08.3]} 47... Rf3+ {[%clk 0:00:08.8]} 48. Kg2 {[%clk
0:00:08.2]} 48... Re3 {[%clk 0:00:09]} 49. Rxh5 {[%clk 0:00:07.5]} 49... Rxe4
{[%clk 0:00:09.5]} 50. Rh6 {[%clk 0:00:07.8]} 50... Re6 {[%clk 0:00:09.3]} 51.
g4 {[%clk 0:00:07.4]} 51... Kd6 {[%clk 0:00:08.9]} 52. Rh8 {[%clk 0:00:07.4]}
52... Ke5 {[%clk 0:00:09.1]} 53. h5 {[%clk 0:00:07.5]} 53... Kf4 {[%clk
0:00:09.4]} 54. Rg8 {[%clk 0:00:07.8]} 54... Re2+ {[%clk 0:00:09.2]} 55. Kf1
{[%clk 0:00:07.1]} 55... Re3 {[%clk 0:00:09]} 56. Rg6 {[%clk 0:00:06.5]} 56...
Rf3+ {[%clk 0:00:07]} 57. Ke1 {[%clk 0:00:06.2]} 57... Kg3 {[%clk 0:00:06.4]}
58. h6 {[%clk 0:00:05.9]} 58... Re3+ {[%clk 0:00:06.9]} 59. Kd2 {[%clk
0:00:06.1]} 59... Re8 {[%clk 0:00:04.6]} 60. Rxf6 {[%clk 0:00:04.9]} 60... Nf3+
{[%clk 0:00:04.5]} 61. Kc3 {[%clk 0:00:04]} 61... Kxg4 {[%clk 0:00:04.7]} 62.
Rxc6 {[%clk 0:00:03.9]} 62... Rh8 {[%clk 0:00:03.1]} 63. Kd3 {[%clk 0:00:03.1]}
63... Kh5 {[%clk 0:00:02.7]} 64. Ke4 {[%clk 0:00:02.9]} 64... Ng5+ {[%clk
0:00:03.1]} 65. Kf5 {[%clk 0:00:03.2]} 65... Nf7 {[%clk 0:00:02]} 66. Rc7 {[%clk
0:00:02.3]} 66... Nxh6+ {[%clk 0:00:01.6]} 67. Ke4 {[%clk 0:00:01.7]} 1-0